[Event "*** SCC Grand Prix: Titled Tuesday Blitz"]
[Site "Chess.com"]
[Date "2020.07.21"]
[Round "5"]
[White "amatatanav"]
[Black "Danfii"]
[Result "1/2-1/2"]
[WhiteElo "2501"]
[BlackElo "2357"]
[TimeControl "180+1"]
[EndTime "10:59:24 PDT"]
[Termination "Game drawn - insufficient material"]

1. e4 {[%clk 0:03:00.9]} 1... e5 {[%clk 0:02:59.9]} 2. Bc4 {[%clk 0:02:56.9]}
2... Nf6 {[%clk 0:02:59.5]} 3. d3 {[%clk 0:02:56.8]} 3... Nc6 {[%clk 0:02:59.4]}
4. Nc3 {[%clk 0:02:56.3]} 4... Na5 {[%clk 0:02:59.7]} 5. Bb3 {[%clk 0:02:52.3]}
5... Be7 {[%clk 0:02:58.6]} 6. f4 {[%clk 0:02:47.9]} 6... d6 {[%clk 0:02:30.9]}
7. Nf3 {[%clk 0:02:37.3]} 7... exf4 {[%clk 0:02:08.9]} 8. Ba4+ {[%clk
0:02:19.8]} 8... Bd7 {[%clk 0:01:58.8]} 9. Bxd7+ {[%clk 0:02:17.4]} 9... Qxd7
{[%clk 0:01:59.1]} 10. Bxf4 {[%clk 0:02:15.9]} 10... O-O {[%clk 0:01:53.6]} 11.
Nd4 {[%clk 0:01:54.4]} 11... Rfe8 {[%clk 0:01:45.9]} 12. Nf5 {[%clk 0:01:42.7]}
12... Bf8 {[%clk 0:01:43.5]} 13. O-O {[%clk 0:01:37.3]} 13... d5 {[%clk
0:01:19.2]} 14. Bg5 {[%clk 0:01:13]} 14... Re6 {[%clk 0:00:54.2]} 15. Bxf6
{[%clk 0:00:35.2]} 15... Rxf6 {[%clk 0:00:55.1]} 16. Nxd5 {[%clk 0:00:34.2]}
16... Rg6 {[%clk 0:00:55.3]} 17. Qf3 {[%clk 0:00:28.3]} 17... Nc6 {[%clk
0:00:53.6]} 18. d4 {[%clk 0:00:19.5]} 18... Re8 {[%clk 0:00:51.8]} 19. c3 {[%clk
0:00:18.5]} 19... Nd8 {[%clk 0:00:48.3]} 20. Nf4 {[%clk 0:00:13.4]} 20... Rf6
{[%clk 0:00:47.8]} 21. Qg4 {[%clk 0:00:11.4]} 21... Ne6 {[%clk 0:00:37.7]} 22.
Nxe6 {[%clk 0:00:10.2]} 22... Qxe6 {[%clk 0:00:26.7]} 23. e5 {[%clk 0:00:07.3]}
23... Rg6 {[%clk 0:00:27]} 24. Qf3 {[%clk 0:00:07.4]} 24... c5 {[%clk
0:00:27.4]} 25. Qxb7 {[%clk 0:00:06.5]} 25... cxd4 {[%clk 0:00:24.1]} 26. cxd4
{[%clk 0:00:07.4]} 26... Qc4 {[%clk 0:00:18.6]} 27. b3 {[%clk 0:00:06.1]} 27...
Qc2 {[%clk 0:00:15.7]} 28. Qf3 {[%clk 0:00:06.2]} 28... Qc7 {[%clk 0:00:12.3]}
29. Rf2 {[%clk 0:00:06.1]} 29... Qd7 {[%clk 0:00:12.5]} 30. Raf1 {[%clk
0:00:06.2]} 30... Kh8 {[%clk 0:00:11.6]} 31. g3 {[%clk 0:00:06.3]} 31... Rd8
{[%clk 0:00:11.6]} 32. Rc2 {[%clk 0:00:05.7]} 32... a5 {[%clk 0:00:11.8]} 33.
Rfc1 {[%clk 0:00:05.9]} 33... f6 {[%clk 0:00:10]} 34. Rc7 {[%clk 0:00:05.8]}
34... Qb5 {[%clk 0:00:09.5]} 35. e6 {[%clk 0:00:04.8]} 35... Rg5 {[%clk
0:00:08.3]} 36. g4 {[%clk 0:00:04.3]} 36... h5 {[%clk 0:00:08.1]} 37. h3 {[%clk
0:00:04.7]} 37... hxg4 {[%clk 0:00:08.1]} 38. hxg4 {[%clk 0:00:05.6]} 38... Qb4
{[%clk 0:00:06.3]} 39. R7c4 {[%clk 0:00:03.6]} 39... Qa3 {[%clk 0:00:05.7]} 40.
Re1 {[%clk 0:00:03.1]} 40... Be7 {[%clk 0:00:05.1]} 41. Nxe7 {[%clk 0:00:03]}
41... Qxe7 {[%clk 0:00:06]} 42. d5 {[%clk 0:00:02.7]} 42... Rgxd5 {[%clk
0:00:04.8]} 43. Rce4 {[%clk 0:00:02.9]} 43... Rd3 {[%clk 0:00:03.9]} 44. R1e3
{[%clk 0:00:02.9]} 44... Rd1+ {[%clk 0:00:03.1]} 45. Kg2 {[%clk 0:00:02.5]}
45... R1d2+ {[%clk 0:00:03]} 46. Re2 {[%clk 0:00:03.4]} 46... R2d3 {[%clk
0:00:03.5]} 47. R2e3 {[%clk 0:00:03.5]} 47... R3d6 {[%clk 0:00:04.4]} 48. Re2
{[%clk 0:00:03.7]} 48... Re8 {[%clk 0:00:04.7]} 49. Qh3+ {[%clk 0:00:04]} 49...
Kg8 {[%clk 0:00:04.5]} 50. Qe3 {[%clk 0:00:04.3]} 50... Rc6 {[%clk 0:00:03.6]}
51. Rd2 {[%clk 0:00:04.4]} 51... Rd6 {[%clk 0:00:04.5]} 52. Rxd6 {[%clk
0:00:04.3]} 52... Qxd6 {[%clk 0:00:04.3]} 53. Kf3 {[%clk 0:00:04.8]} 53... Kf8
{[%clk 0:00:04.4]} 54. a3 {[%clk 0:00:04]} 54... Qxa3 {[%clk 0:00:04]} 55. Rc4
{[%clk 0:00:03.9]} 55... Qd6 {[%clk 0:00:04.2]} 56. Re4 {[%clk 0:00:04.2]} 56...
Ke7 {[%clk 0:00:04.1]} 57. g5 {[%clk 0:00:04.3]} 57... Kf8 {[%clk 0:00:04.4]}
58. gxf6 {[%clk 0:00:03.5]} 58... gxf6 {[%clk 0:00:05.3]} 59. Qh6+ {[%clk
0:00:03.8]} 59... Ke7 {[%clk 0:00:05.7]} 60. Qg7+ {[%clk 0:00:04.1]} 60... Kd8
{[%clk 0:00:06.3]} 61. Qxf6+ {[%clk 0:00:04]} 61... Qe7 {[%clk 0:00:06]} 62.
Rd4+ {[%clk 0:00:03.4]} 62... Kc8 {[%clk 0:00:05.8]} 63. Qxe7 {[%clk 0:00:03.6]}
63... Rxe7 {[%clk 0:00:06.7]} 64. Rd6 {[%clk 0:00:04]} 64... Kc7 {[%clk
0:00:06.9]} 65. Ra6 {[%clk 0:00:04]} 65... Kb7 {[%clk 0:00:07.4]} 66. Rxa5
{[%clk 0:00:03.5]} 66... Rxe6 {[%clk 0:00:07.9]} 67. Kf4 {[%clk 0:00:03.9]}
67... Rb6 {[%clk 0:00:07.2]} 68. Ra3 {[%clk 0:00:04]} 68... Kc6 {[%clk
0:00:07.7]} 69. Ke4 {[%clk 0:00:04.5]} 69... Kc5 {[%clk 0:00:08.3]} 70. Kd3
{[%clk 0:00:03.1]} 70... Kb4 {[%clk 0:00:08.7]} 71. Ra1 {[%clk 0:00:03.5]} 71...
Rd6+ {[%clk 0:00:08.4]} 72. Kc2 {[%clk 0:00:03.9]} 72... Rc6+ {[%clk 0:00:08.9]}
73. Kb2 {[%clk 0:00:04.2]} 73... Rh6 {[%clk 0:00:09.4]} 74. Ra4+ {[%clk
0:00:04.7]} 74... Kb5 {[%clk 0:00:10.1]} 75. Rg4 {[%clk 0:00:05.4]} 75... Rh3
{[%clk 0:00:09.5]} 76. Ka3 {[%clk 0:00:05.6]} 76... Rh1 {[%clk 0:00:09.9]} 77.
Rg6 {[%clk 0:00:05.8]} 77... Rh4 {[%clk 0:00:08.7]} 78. Rf6 {[%clk 0:00:05.9]}
78... Rh1 {[%clk 0:00:08.9]} 79. Rf5+ {[%clk 0:00:05.9]} 79... Kb6 {[%clk
0:00:08.9]} 80. Ka4 {[%clk 0:00:06.8]} 80... Rh4+ {[%clk 0:00:09]} 81. b4 {[%clk
0:00:06.9]} 81... Rh1 {[%clk 0:00:09.9]} 82. Rb5+ {[%clk 0:00:07.5]} 82... Kc6
{[%clk 0:00:09.8]} 83. Rc5+ {[%clk 0:00:08.4]} 83... Kb6 {[%clk 0:00:10.2]} 84.
Rc4 {[%clk 0:00:09.3]} 84... Ra1+ {[%clk 0:00:09.6]} 85. Kb3 {[%clk 0:00:09.5]}
85... Rb1+ {[%clk 0:00:10.2]} 86. Ka3 {[%clk 0:00:09]} 86... Ra1+ {[%clk
0:00:10.1]} 87. Kb2 {[%clk 0:00:09.4]} 87... Rh1 {[%clk 0:00:10.8]} 88. Re4
{[%clk 0:00:09]} 88... Rh2+ {[%clk 0:00:11.1]} 89. Kb3 {[%clk 0:00:09.2]} 89...
Rh1 {[%clk 0:00:10.7]} 90. Re6+ {[%clk 0:00:08.9]} 90... Kb5 {[%clk 0:00:10.1]}
91. Re5+ {[%clk 0:00:09.8]} 91... Kb6 {[%clk 0:00:10.6]} 92. Rf5 {[%clk
0:00:10.1]} 92... Rh2 {[%clk 0:00:09.3]} 93. Ka4 {[%clk 0:00:09.8]} 93... Ra2+
{[%clk 0:00:08.7]} 94. Kb3 {[%clk 0:00:10.2]} 94... Rh2 {[%clk 0:00:09.6]} 95.
Rg5 {[%clk 0:00:10.7]} 95... Rh3+ {[%clk 0:00:09.9]} 96. Kc4 {[%clk 0:00:11.3]}
96... Rh1 {[%clk 0:00:10.8]} 97. Rg6+ {[%clk 0:00:11.4]} 97... Kb7 {[%clk
0:00:11.4]} 98. Kb5 {[%clk 0:00:11.5]} 98... Rh5+ {[%clk 0:00:11.3]} 99. Ka4
{[%clk 0:00:11.9]} 99... Rh1 {[%clk 0:00:12.2]} 100. Ka5 {[%clk 0:00:11.9]}
100... Ra1+ {[%clk 0:00:11.5]} 101. Kb5 {[%clk 0:00:12.3]} 101... Rh1 {[%clk
0:00:12.2]} 102. Rg7+ {[%clk 0:00:12.7]} 102... Kb8 {[%clk 0:00:12.6]} 103. Rg8+
{[%clk 0:00:12.4]} 103... Kb7 {[%clk 0:00:12.6]} 104. Rg7+ {[%clk 0:00:13.3]}
104... Kb8 {[%clk 0:00:13.1]} 105. Ka5 {[%clk 0:00:13]} 105... Rh6 {[%clk
0:00:13]} 106. b5 {[%clk 0:00:12.9]} 106... Rf6 {[%clk 0:00:13.6]} 107. Re7
{[%clk 0:00:13.1]} 107... Rh6 {[%clk 0:00:13.5]} 108. Rf7 {[%clk 0:00:13.1]}
108... Rg6 {[%clk 0:00:13.8]} 109. Kb4 {[%clk 0:00:13.4]} 109... Rh6 {[%clk
0:00:12.9]} 110. Kc5 {[%clk 0:00:13.6]} 110... Rg6 {[%clk 0:00:13]} 111. Rd7
{[%clk 0:00:14]} 111... Rh6 {[%clk 0:00:13.2]} 112. Re7 {[%clk 0:00:13.5]}
112... Rg6 {[%clk 0:00:13.4]} 113. Kb4 {[%clk 0:00:13.5]} 113... Rh6 {[%clk
0:00:13.7]} 114. Ka5 {[%clk 0:00:13.9]} 114... Rg6 {[%clk 0:00:13.4]} 115. Re8+
{[%clk 0:00:14.6]} 115... Kb7 {[%clk 0:00:13.2]} 116. Re7+ {[%clk 0:00:15.2]}
116... Kb8 {[%clk 0:00:13.7]} 117. Re4 {[%clk 0:00:13.8]} 117... Rh6 {[%clk
0:00:13.9]} 118. Rc4 {[%clk 0:00:13.8]} 118... Rg6 {[%clk 0:00:13.4]} 119. Kb4
{[%clk 0:00:13.9]} 119... Rh6 {[%clk 0:00:13.4]} 120. Kc5 {[%clk 0:00:13.9]}
120... Kb7 {[%clk 0:00:13.7]} 121. Rd4 {[%clk 0:00:13.7]} 121... Rh5+ {[%clk
0:00:13.6]} 122. Kb4 {[%clk 0:00:13.8]} 122... Kb6 {[%clk 0:00:13.1]} 123. Rd6+
{[%clk 0:00:13.9]} 123... Kb7 {[%clk 0:00:13.7]} 124. Rc6 {[%clk 0:00:13.1]}
124... Rh1 {[%clk 0:00:13.1]} 125. Rf6 {[%clk 0:00:12.5]} 125... Rb1+ {[%clk
0:00:12.9]} 126. Kc5 {[%clk 0:00:12.4]} 126... Rc1+ {[%clk 0:00:13.3]} 127. Kd4
{[%clk 0:00:12]} 127... Rd1+ {[%clk 0:00:13.7]} 128. Kc3 {[%clk 0:00:12.3]}
128... Rc1+ {[%clk 0:00:14.1]} 129. Kb2 {[%clk 0:00:12.6]} 129... Rc5 {[%clk
0:00:14.1]} 130. b6 {[%clk 0:00:09.9]} 130... Rb5+ {[%clk 0:00:14.3]} 131. Kc3
{[%clk 0:00:09.7]} 131... Rxb6 {[%clk 0:00:15.2]} 132. Rxb6+ {[%clk 0:00:09.2]}
132... Kxb6 {[%clk 0:00:16.1]} 1/2-1/2

[Event "*** SCC Grand Prix: Titled Tuesday Blitz"]
[Site "Chess.com"]
[Date "2020.07.21"]
[Round "6"]
[White "nikitakhoroshev"]
[Black "WeAintSurePal"]
[Result "1-0"]
[WhiteElo "2544"]
[BlackElo "2301"]
[TimeControl "180+1"]
[EndTime "11:00:59 PDT"]
[Termination "nikitakhoroshev won by resignation"]

1. d4 {[%clk 0:03:00.9]} 1... Nf6 {[%clk 0:02:42.3]} 2. c4 {[%clk 0:02:59.9]}
2... e6 {[%clk 0:02:42.1]} 3. Nc3 {[%clk 0:02:59.6]} 3... d5 {[%clk 0:02:40.2]}
4. Nf3 {[%clk 0:02:58.6]} 4... Be7 {[%clk 0:02:38.6]} 5. Bg5 {[%clk 0:02:58.3]}
5... h6 {[%clk 0:02:38.5]} 6. Bh4 {[%clk 0:02:57.7]} 6... O-O {[%clk 0:02:37.3]}
7. e3 {[%clk 0:02:57.9]} 7... Ne4 {[%clk 0:02:36.3]} 8. Bxe7 {[%clk 0:02:57.8]}
8... Qxe7 {[%clk 0:02:37.2]} 9. Rc1 {[%clk 0:02:58.1]} 9... c6 {[%clk 0:02:36]}
10. Bd3 {[%clk 0:02:57.4]} 10... Nxc3 {[%clk 0:02:34.3]} 11. Rxc3 {[%clk
0:02:58.3]} 11... dxc4 {[%clk 0:02:33.3]} 12. Rxc4 {[%clk 0:02:59.2]} 12... Nd7
{[%clk 0:02:31.1]} 13. Bb1 {[%clk 0:02:58.2]} 13... e5 {[%clk 0:02:31.2]} 14.
Qc2 {[%clk 0:02:57.7]} 14... Re8 {[%clk 0:02:29.7]} 15. Qh7+ {[%clk 0:02:55]}
1-0

[Event "*** SCC Grand Prix: Titled Tuesday Blitz"]
[Site "Chess.com"]
[Date "2020.07.21"]
[Round "6"]
[White "RenarddesSurfaces"]
[Black "Quiet_Desperation"]
[Result "1-0"]
[WhiteElo "2412"]
[BlackElo "2237"]
[TimeControl "180+1"]
[EndTime "11:01:34 PDT"]
[Termination "RenarddesSurfaces won by resignation"]

1. e4 {[%clk 0:03:00.9]} 1... c5 {[%clk 0:02:58.8]} 2. c3 {[%clk 0:03:00.9]}
2... d5 {[%clk 0:02:58.1]} 3. exd5 {[%clk 0:03:01.8]} 3... Qxd5 {[%clk 0:02:58]}
4. d4 {[%clk 0:03:02.3]} 4... cxd4 {[%clk 0:02:56.6]} 5. cxd4 {[%clk 0:03:03.2]}
5... Nc6 {[%clk 0:02:56]} 6. Nf3 {[%clk 0:03:03]} 6... Bg4 {[%clk 0:02:55]} 7.
Be2 {[%clk 0:03:02.5]} 7... O-O-O {[%clk 0:02:54.1]} 8. Nc3 {[%clk 0:03:02.1]}
8... Qd6 {[%clk 0:02:52.6]} 9. O-O {[%clk 0:02:29.9]} 9... e6 {[%clk 0:02:48.2]}
10. Be3 {[%clk 0:02:26.4]} 10... Nf6 {[%clk 0:02:46.9]} 11. Rc1 {[%clk
0:02:25.4]} 11... Kb8 {[%clk 0:02:46.7]} 12. Nb5 {[%clk 0:02:19.2]} 12... Qb4
{[%clk 0:02:38.3]} 13. Bf4+ {[%clk 0:02:16]} 13... Kc8 {[%clk 0:02:31.5]} 14.
Nxa7+ {[%clk 0:02:14.4]} 1-0

[Event "*** SCC Grand Prix: Titled Tuesday Blitz"]
[Site "Chess.com"]
[Date "2020.07.21"]
[Round "6"]
[White "ENEASZ"]
[Black "margarita_2703"]
[Result "1-0"]
[WhiteElo "2600"]
[BlackElo "2395"]
[TimeControl "180+1"]
[EndTime "11:01:38 PDT"]
[Termination "ENEASZ won by resignation"]

1. e4 {[%clk 0:03:00.9]} 1... Nf6 {[%clk 0:02:59.6]} 2. e5 {[%clk 0:03:00.5]}
2... Nd5 {[%clk 0:02:59.5]} 3. d4 {[%clk 0:03:01.4]} 3... d6 {[%clk 0:02:59]} 4.
c4 {[%clk 0:03:02.2]} 4... Nb6 {[%clk 0:02:58.9]} 5. exd6 {[%clk 0:03:02.9]}
5... cxd6 {[%clk 0:02:59.2]} 6. Nc3 {[%clk 0:03:03.5]} 6... g6 {[%clk
0:02:58.6]} 7. Be3 {[%clk 0:03:04.1]} 7... Bg7 {[%clk 0:02:58.9]} 8. Rc1 {[%clk
0:03:04.7]} 8... O-O {[%clk 0:02:58.9]} 9. b3 {[%clk 0:03:05.2]} 9... e5 {[%clk
0:02:57]} 10. dxe5 {[%clk 0:03:01.2]} 10... dxe5 {[%clk 0:02:56.7]} 11. Qxd8
{[%clk 0:02:53]} 11... Rxd8 {[%clk 0:02:55.6]} 12. c5 {[%clk 0:02:53.9]} 12...
Nd5 {[%clk 0:02:51.7]} 13. Rd1 {[%clk 0:02:51.4]} 13... Be6 {[%clk 0:02:35.6]}
14. Bc4 {[%clk 0:02:47.8]} 14... Nxc3 {[%clk 0:02:07.5]} 15. Rxd8+ {[%clk
0:02:46.4]} 15... Bf8 {[%clk 0:02:07.3]} 16. Bh6 {[%clk 0:02:40.7]} 1-0

[Event "*** SCC Grand Prix: Titled Tuesday Blitz"]
[Site "Chess.com"]
[Date "2020.07.21"]
[Round "6"]
[White "kobemagic"]
[Black "Stormeman100100"]
[Result "1-0"]
[WhiteElo "2329"]
[BlackElo "2438"]
[TimeControl "180+1"]
[EndTime "11:03:06 PDT"]
[Termination "kobemagic won by resignation"]

1. c4 {[%clk 0:03:00.9]} 1... Nf6 {[%clk 0:02:59.3]} 2. g3 {[%clk 0:03:01.8]}
2... e5 {[%clk 0:02:58]} 3. Bg2 {[%clk 0:02:59.9]} 3... Bc5 {[%clk 0:02:57.5]}
4. e3 {[%clk 0:02:59.2]} 4... O-O {[%clk 0:02:53.5]} 5. Nc3 {[%clk 0:02:58.4]}
5... a6 {[%clk 0:02:49.2]} 6. Nge2 {[%clk 0:02:58.3]} 6... d6 {[%clk 0:02:48.3]}
7. O-O {[%clk 0:02:55.5]} 7... Ba7 {[%clk 0:02:48.6]} 8. b4 {[%clk 0:02:54.4]}
8... Nc6 {[%clk 0:02:48]} 9. a3 {[%clk 0:02:53.8]} 9... Be6 {[%clk 0:02:46.9]}
10. Nd5 {[%clk 0:02:52.4]} 10... Qd7 {[%clk 0:02:32.2]} 11. Nxf6+ {[%clk
0:02:49.8]} 11... gxf6 {[%clk 0:02:33.1]} 12. f4 {[%clk 0:02:50.4]} 12... Bh3
{[%clk 0:02:32]} 13. Qe1 {[%clk 0:02:34]} 13... Bxg2 {[%clk 0:02:30.9]} 14. Kxg2
{[%clk 0:02:34.9]} 14... Kh8 {[%clk 0:02:30.1]} 15. Qf2 {[%clk 0:02:34.1]} 15...
e4 {[%clk 0:02:29.6]} 16. Bb2 {[%clk 0:02:30.3]} 16... Qe6 {[%clk 0:02:28.3]}
17. Kh1 {[%clk 0:02:18.8]} 17... Rg8 {[%clk 0:02:11.7]} 18. b5 {[%clk
0:02:17.7]} 18... axb5 {[%clk 0:02:11.2]} 19. cxb5 {[%clk 0:02:18.6]} 19... Na5
{[%clk 0:02:11.6]} 20. f5 {[%clk 0:02:16.9]} 20... Qe7 {[%clk 0:02:11.5]} 21.
Nf4 {[%clk 0:02:15.6]} 21... Nc4 {[%clk 0:01:55.3]} 22. Nd5 {[%clk 0:02:11.4]}
22... Qd8 {[%clk 0:01:53.8]} 23. Bxf6+ {[%clk 0:02:09.5]} 23... Qxf6 {[%clk
0:01:54.2]} 24. Nxf6 {[%clk 0:02:10.4]} 24... Rg7 {[%clk 0:01:54.8]} 25. Rac1
{[%clk 0:01:55.5]} 1-0

[Event "*** SCC Grand Prix: Titled Tuesday Blitz"]
[Site "Chess.com"]
[Date "2020.07.21"]
[Round "6"]
[White "mirochka"]
[Black "pedro_nascimento85"]
[Result "1-0"]
[WhiteElo "2139"]
[BlackElo "1922"]
[TimeControl "180+1"]
[EndTime "11:03:19 PDT"]
[Termination "mirochka won by resignation"]

1. e4 {[%clk 0:03:00.9]} 1... e6 {[%clk 0:02:59.7]} 2. Nf3 {[%clk 0:02:59.3]}
2... d5 {[%clk 0:02:59.4]} 3. e5 {[%clk 0:02:59.8]} 3... c5 {[%clk 0:02:59.2]}
4. b4 {[%clk 0:02:59.6]} 4... b6 {[%clk 0:02:57.6]} 5. a3 {[%clk 0:02:57.1]}
5... f6 {[%clk 0:02:55.9]} 6. Bb2 {[%clk 0:02:55.3]} 6... Nc6 {[%clk 0:02:50.6]}
7. b5 {[%clk 0:02:46.8]} 7... Nxe5 {[%clk 0:02:50]} 8. Nxe5 {[%clk 0:02:46]}
8... fxe5 {[%clk 0:02:50.2]} 9. Qh5+ {[%clk 0:02:42.2]} 9... g6 {[%clk 0:02:49]}
10. Qxe5 {[%clk 0:02:41.8]} 10... Nf6 {[%clk 0:02:38.1]} 11. Qxf6 {[%clk
0:02:41.4]} 11... Qxf6 {[%clk 0:02:37.6]} 12. Bxf6 {[%clk 0:02:41.9]} 12... Rg8
{[%clk 0:02:37.1]} 13. Nc3 {[%clk 0:02:32.8]} 13... Kf7 {[%clk 0:02:34.6]} 14.
Be5 {[%clk 0:02:31.9]} 14... Bg7 {[%clk 0:02:33.8]} 15. f4 {[%clk 0:02:23.4]}
15... Bxe5 {[%clk 0:02:31.9]} 16. fxe5 {[%clk 0:02:23]} 16... Kg7 {[%clk
0:02:32.4]} 17. d4 {[%clk 0:02:18.3]} 17... a6 {[%clk 0:02:32.4]} 18. Bd3 {[%clk
0:02:04.4]} 18... cxd4 {[%clk 0:02:31]} 19. Ne2 {[%clk 0:02:03.6]} 19... Bd7
{[%clk 0:02:26.5]} 20. bxa6 {[%clk 0:01:59.4]} 20... Bc8 {[%clk 0:02:26.8]} 21.
Nxd4 {[%clk 0:01:58.8]} 21... Kf7 {[%clk 0:02:24.4]} 22. Rf1+ {[%clk 0:01:51.9]}
22... Ke7 {[%clk 0:02:23.8]} 23. Nc6+ {[%clk 0:01:24.6]} 23... Kd7 {[%clk
0:02:21.6]} 24. Bb5 {[%clk 0:01:23.5]} 24... Bxa6 {[%clk 0:02:18.2]} 25. Nb8+
{[%clk 0:01:19.4]} 25... Kc7 {[%clk 0:02:13]} 26. Nxa6+ {[%clk 0:01:19]} 1-0

[Event "*** SCC Grand Prix: Titled Tuesday Blitz"]
[Site "Chess.com"]
[Date "2020.07.21"]
[Round "6"]
[White "Joseacorrea"]
[Black "winniethepooh04"]
[Result "1-0"]
[WhiteElo "1981"]
[BlackElo "2093"]
[TimeControl "180+1"]
[EndTime "11:03:27 PDT"]
[Termination "Joseacorrea won by checkmate"]

1. c4 {[%clk 0:03:00.6]} 1... Nf6 {[%clk 0:02:57.3]} 2. Nc3 {[%clk 0:03:01]}
2... g6 {[%clk 0:02:55.8]} 3. d4 {[%clk 0:03:00.3]} 3... Bg7 {[%clk 0:02:56.1]}
4. e4 {[%clk 0:03:00.6]} 4... d6 {[%clk 0:02:56.9]} 5. f3 {[%clk 0:03:01.3]}
5... O-O {[%clk 0:02:56.5]} 6. Be3 {[%clk 0:03:01.1]} 6... Nbd7 {[%clk
0:02:56.9]} 7. Nge2 {[%clk 0:03:00.7]} 7... a6 {[%clk 0:02:57.3]} 8. Qd2 {[%clk
0:03:00.9]} 8... Rb8 {[%clk 0:02:55.9]} 9. g4 {[%clk 0:02:58.2]} 9... b5 {[%clk
0:02:55.9]} 10. h4 {[%clk 0:02:55.4]} 10... bxc4 {[%clk 0:02:54.9]} 11. Ng3
{[%clk 0:02:53.3]} 11... e5 {[%clk 0:02:44.5]} 12. d5 {[%clk 0:02:43.4]} 12...
Nc5 {[%clk 0:02:44]} 13. Bh6 {[%clk 0:02:39.7]} 13... Bxh6 {[%clk 0:02:40.7]}
14. Qxh6 {[%clk 0:02:38.4]} 14... Rxb2 {[%clk 0:02:41.2]} 15. h5 {[%clk
0:02:19.4]} 15... Bxg4 {[%clk 0:02:22.4]} 16. hxg6 {[%clk 0:02:11.4]} 16... Bxf3
{[%clk 0:02:02.9]} 17. Nf5 {[%clk 0:02:00.9]} 17... Nh5 {[%clk 0:01:06.9]} 18.
Qxh7# {[%clk 0:01:53.4]} 1-0

[Event "*** SCC Grand Prix: Titled Tuesday Blitz"]
[Site "Chess.com"]
[Date "2020.07.21"]
[Round "6"]
[White "RestartingChess"]
[Black "LuisFSiles"]
[Result "1-0"]
[WhiteElo "2517"]
[BlackElo "2331"]
[TimeControl "180+1"]
[EndTime "11:03:33 PDT"]
[Termination "RestartingChess won by resignation"]

1. e4 {[%clk 0:03:00.9]} 1... c5 {[%clk 0:02:57.8]} 2. Nf3 {[%clk 0:03:01.4]}
2... d6 {[%clk 0:02:56.3]} 3. Bb5+ {[%clk 0:03:01.2]} 3... Nd7 {[%clk
0:02:55.7]} 4. c4 {[%clk 0:03:01.4]} 4... Nf6 {[%clk 0:02:55]} 5. Nc3 {[%clk
0:03:01.7]} 5... g6 {[%clk 0:02:54.6]} 6. d3 {[%clk 0:03:02]} 6... Bg7 {[%clk
0:02:54.8]} 7. Bxd7+ {[%clk 0:03:02.1]} 7... Bxd7 {[%clk 0:02:54.6]} 8. h3
{[%clk 0:03:03]} 8... O-O {[%clk 0:02:53.9]} 9. Be3 {[%clk 0:03:03.9]} 9... Bc6
{[%clk 0:02:47.9]} 10. Qd2 {[%clk 0:03:04]} 10... a6 {[%clk 0:02:45]} 11. Bh6
{[%clk 0:03:04]} 11... b5 {[%clk 0:02:43]} 12. Bxg7 {[%clk 0:03:04.5]} 12...
Kxg7 {[%clk 0:02:43.3]} 13. b3 {[%clk 0:03:04.4]} 13... e6 {[%clk 0:02:35.8]}
14. h4 {[%clk 0:03:04.1]} 14... h5 {[%clk 0:02:30.4]} 15. Ne2 {[%clk 0:03:04]}
15... Ng4 {[%clk 0:02:27.5]} 16. Ng3 {[%clk 0:03:01.5]} 16... Qf6 {[%clk
0:02:25.4]} 17. O-O {[%clk 0:02:48]} 17... d5 {[%clk 0:02:20.3]} 18. cxd5 {[%clk
0:02:44]} 18... exd5 {[%clk 0:02:20.4]} 19. Rac1 {[%clk 0:02:41.8]} 19... c4
{[%clk 0:01:47]} 20. bxc4 {[%clk 0:02:37.1]} 20... bxc4 {[%clk 0:01:46.3]} 21.
Rfe1 {[%clk 0:02:29.6]} 21... Rfe8 {[%clk 0:01:35.4]} 22. Qg5 {[%clk 0:02:04.9]}
22... Rac8 {[%clk 0:01:19.1]} 23. Nxh5+ {[%clk 0:02:01.2]} 1-0

[Event "*** SCC Grand Prix: Titled Tuesday Blitz"]
[Site "Chess.com"]
[Date "2020.07.21"]
[Round "6"]
[White "MFguimaraes"]
[Black "Roza_Idrisova"]
[Result "1-0"]
[WhiteElo "2412"]
[BlackElo "2246"]
[TimeControl "180+1"]
[EndTime "11:03:37 PDT"]
[Termination "MFguimaraes won by resignation"]

1. e4 {[%clk 0:03:00.9]} 1... c6 {[%clk 0:02:58.9]} 2. d4 {[%clk 0:03:00.5]}
2... d5 {[%clk 0:02:58.8]} 3. Nc3 {[%clk 0:03:01.2]} 3... a6 {[%clk 0:02:58.3]}
4. Nf3 {[%clk 0:02:55.1]} 4... Bg4 {[%clk 0:02:57.3]} 5. h3 {[%clk 0:02:53.3]}
5... Bh5 {[%clk 0:02:56.8]} 6. g4 {[%clk 0:02:53]} 6... Bg6 {[%clk 0:02:56.8]}
7. exd5 {[%clk 0:02:53.5]} 7... cxd5 {[%clk 0:02:56.6]} 8. Ne5 {[%clk
0:02:53.9]} 8... Nc6 {[%clk 0:02:56.7]} 9. Nxc6 {[%clk 0:02:48.6]} 9... bxc6
{[%clk 0:02:56.3]} 10. Bg2 {[%clk 0:02:47.2]} 10... e6 {[%clk 0:02:55.9]} 11.
O-O {[%clk 0:02:46.9]} 11... Nf6 {[%clk 0:02:55.6]} 12. f4 {[%clk 0:02:43.6]}
12... Bd6 {[%clk 0:02:51]} 13. f5 {[%clk 0:02:43.6]} 13... exf5 {[%clk
0:02:50.9]} 14. gxf5 {[%clk 0:02:43.7]} 14... Bh5 {[%clk 0:02:50.8]} 15. Re1+
{[%clk 0:02:43.8]} 15... Kf8 {[%clk 0:02:44.1]} 16. Bf3 {[%clk 0:02:42.8]} 16...
Bxf3 {[%clk 0:02:42.8]} 17. Qxf3 {[%clk 0:02:43.7]} 17... Qd7 {[%clk 0:02:41.3]}
18. Bg5 {[%clk 0:02:40]} 18... h6 {[%clk 0:02:34.7]} 19. Bh4 {[%clk 0:02:39.8]}
19... Nh7 {[%clk 0:02:26.2]} 20. Kh1 {[%clk 0:02:37.3]} 20... f6 {[%clk
0:02:26]} 21. Re6 {[%clk 0:02:34.8]} 21... Kf7 {[%clk 0:02:23]} 22. Rae1 {[%clk
0:02:33.8]} 22... Rhe8 {[%clk 0:02:18.2]} 23. Qh5+ {[%clk 0:02:33.8]} 23... Kf8
{[%clk 0:02:18.2]} 24. Qg6 {[%clk 0:02:33.1]} 24... Ng5 {[%clk 0:02:16.8]} 25.
Bxg5 {[%clk 0:02:25.1]} 25... hxg5 {[%clk 0:02:13.2]} 26. Qh7 {[%clk 0:02:14.9]}
26... Rad8 {[%clk 0:01:38.1]} 27. Kg2 {[%clk 0:02:02.1]} 27... Qf7 {[%clk
0:01:34.8]} 28. Rxe8+ {[%clk 0:01:57]} 28... Rxe8 {[%clk 0:01:30.9]} 29. Qh8+
{[%clk 0:01:57.2]} 29... Qg8 {[%clk 0:01:29.6]} 30. Rxe8+ {[%clk 0:01:56.7]}
30... Kxe8 {[%clk 0:01:29.2]} 31. Qxg8+ {[%clk 0:01:57.1]} 1-0